[Event "4th Tata Steel India Blitz Open 2022"]
[Site "Kolkota"]
[Date "2022.12.03"]
[Round "3.4"]
[White "So, Wesley"]
[Black "Mamedyarov, Shakhriyar"]
[Result "0-1"]
[ECO "C54"]
[WhiteElo "2760"]
[BlackElo "2741"]
[Annotator "TA"]
[PlyCount "94"]
[EventDate "2022.11.29"]
[EventType "tourn"]
[EventCountry "IND"]
[SourceTitle "playchess.com"]
[Source "ChessBase"]
[SourceQuality "1"]
[TimeControl "180+2"]

{[%evp 13,94,8,23,25,28,9,33,3,40,32,44,43,44,33,35,56,58,0,0,0,0,0,0,0,10,-45,-22,-29,0,0,79,0,0,0,0,0,0,0,0,-401,-405,-362,-212,-196,-207,-202,-212,-211,-170,-200,-30,-31,-12,-44,-29,-119,-82,-133,-124,-127,-130,-149,-152,-133,-25,-28,0,-5369,-5289,-5273,-5037,-2427,-2186,-1581,-1138,-6551,-6183,-2547,-2221,-6564,-5727,-6139,-6123]} 1. e4 {[%emt 0:00:01]} e5 {[%emt 0:00:01]} 2. Nf3 {[%emt 0:00:01]} Nc6 {[%emt 0:00:01]} 3. Bc4 {[%emt 0:00:01]} Bc5 {[%emt 0:00:01]} 4. c3 {[%emt 0:00:02]} Nf6 {[%emt 0:00:02]} 5. d3 {[%emt 0:00:01]} a6 {[%emt 0:00:05]} 6. Bg5 {[%emt 0:00:03]} h6 {[%emt 0:00:03]} 7. Bh4 {[%emt 0:00:01]} d6 {[%emt 0:00:04]} 8. a4 {[%emt 0:00:03] C54: Giuoco Piano: 4 c3 Nf6, main lines with 5 d4 and 5 d3.} Ba7 {[%emt 0:00:02]} 9. Nbd2 {[%emt 0:00:03]} Qe7 {[%emt 0:00:10]} (9... g5 $5 {[%cal Rg5h4]} 10. Bg3 O-O $11) 10. b4 {[%emt 0:00:21] [#] White is slightly better.} a5 $1 $146 {[%emt 0:00:00][%mdl 8] A top novelty.} ({Predecessor:} 10... g5 11. Bg3 Nh5 12. h3 Nd8 13. Bh2 g4 14. hxg4 Bxg4 15. b5 a5 16. Rb1 Ne6 17. Bxe6 Qxe6 {0-1 (57) Harikrishna,P (2725)-Cornette,M (2578) Struga 2021}) 11. b5 {[%emt 0:00:03]} Nd8 {[%emt 0:00:20]} 12. O-O {[%emt 0:00:01]} Ne6 {[%emt 0:00:09] Against d4} 13. d4 {[%emt 0:00:14]} (13. Bb3 {keeps more tension.} Nf4 14. Nc4 O-O 15. Re1) 13... exd4 {[%emt 0:00:02]} 14. Bxe6 {[%emt 0:00:21]} Bxe6 {[%emt 0:00:14]} 15. Nxd4 {[%emt 0:00:07]} (15. cxd4 $14 {is superior.} g5 16. Bg3) 15... g5 $11 {[%emt 0:00:12]} 16. Bg3 {[%emt 0:00:01]} h5 $36 {[%emt 0:00:00][%cal Bh6h5,Bh5h4][%mdl 2080] Threatens to win with ...h4. Black has good play.} 17. f3 {[%emt 0:00:46]} h4 {[%emt 0:00:18]} 18. Bf2 {[%emt 0:00:00]} g4 {[%emt 0:00:01][%cal Og4g3]} 19. Be3 {[%emt 0:00:04]} (19. Nf5 $11 Bxf2+ 20. Rxf2 Bxf5 21. exf5 gxf3 22. Qxf3) 19... gxf3 {[%emt 0:00:13]} (19... O-O-O {simplifies} 20. Qe1 gxf3 21. Nxe6 Bxe3+ 22. Qxe3 Qxe6 23. Qxf3 Rh6) 20. Bg5 {[%emt 0:00:11]} Rg8 {[%emt 0:00:40]} 21. N2xf3 {[%emt 0:00:01]} O-O-O {[%emt 0:00:09]} (21... h3 $11) 22. Bxh4 {[%emt 0:00:03]} (22. Qc1 $1 $16) 22... Rg4 {[%emt 0:00:03]} 23. Qd3 {[%emt 0:00:22]} Rh8 {[%emt 0:00:26]} 24. g3 {[%emt 0:00:00]} Rhxh4 {[%emt 0:00:01][%mdl 64]} 25. Nxh4 Nxe4 26. Ng2 {[%emt 0:00:12][%mdl 8192] [#]} (26. Nhf3 $11 {and White stays safe.}) 26... Nxc3 $1 $19 {[%emt 0:00:03][%mdl 576]} 27. Nf4 {[%emt 0:00:05][%cal Bg2f4,Bf4e2,Be2d4,Bd4f5][%mdl 32]} Bxd4+ {[%emt 0:00:05]} (27... Qf6 $142 28. Nfxe6 Qxe6) 28. Qxd4 {[%emt 0:00:01]} Ne2+ {[%emt 0:00:08]} 29. Nxe2 {[%emt 0:00:01]} Rxd4 {[%emt 0:00:01]} 30. Nxd4 {[%emt 0:00:01] [#]} Bd5 $1 {[%emt 0:00:10]} 31. Rae1 {[%emt 0:00:00] [#] Against Qe3+} Qg5 {[%emt 0:00:01]} (31... Be4 $1 $19 {...d5 is the strong threat.} 32. b6 d5 33. bxc7 Kxc7) 32. Rf4 $11 {[%emt 0:00:10]} Kd7 {[%emt 0:00:06]} 33. Nf5 {[%emt 0:00:11]} (33. Kf2 {feels hotter.} c5 34. bxc6+ bxc6 35. h4) 33... Be6 {[%emt 0:00:02]} 34. Ref1 {[%emt 0:00:10]} (34. Nd4 $1 $11 {remains equal.}) 34... c6 {[%emt 0:00:05] Hoping for ...cxb5.} 35. bxc6+ {[%emt 0:00:04]} ({White should play} 35. h4 Qh5 36. Nd4) 35... bxc6 $17 {[%emt 0:00:01]} 36. h4 {[%emt 0:00:03]} Qg6 {[%emt 0:00:03]} 37. Kh2 {[%emt 0:00:02]} c5 {[%emt 0:00:01]} 38. g4 {[%emt 0:00:03]} c4 {[%emt 0:00:02]} (38... Bxf5 $17 39. Rxf5 Qxg4) 39. Kg3 {[%emt 0:00:06]} c3 {[%emt 0:00:03] Strongly threatening ...Qf6.} 40. Rd4 $2 {[%emt 0:00:12][%mdl 8192]} (40. h5 $11 Qf6 41. Re1) 40... Bxf5 $19 {[%emt 0:00:02] Black is clearly winning.} 41. Rxf5 {[%emt 0:00:01][%mdl 4096] Endgame KQ-KRR} Qe6 {[%emt 0:00:02]} 42. Rdf4 {[%emt 0:00:10]} c2 {[%emt 0:00:02] ( -> ...Qe1+)} 43. Rf1 {[%emt 0:00:02] Inhibits Qe1+.} Qe3+ {[%emt 0:00:07]} 44. R5f3 {[%emt 0:00:01]} c1=Q {[%emt 0:00:01]} ({Less strong is} 44... c1=R 45. Rxe3 Rxf1 46. h5 $18) 45. Rxc1 {[%emt 0:00:01]} Qxc1 {[%emt 0:00:01]} 46. Rxf7+ {[%emt 0:00:01]} Ke6 {[%emt 0:00:01]} 47. Rf3 {[%emt 0:00:01]} d5 {[%emt 0:00:03] Weighted Error Value: White=0.77/Black=0.45} 0-1

[Event "4th Tata Steel India Blitz Open 2022"]
[Site "Kolkota"]
[Date "2022.12.03"]
[Round "3.5"]
[White "Gukesh D"]
[Black "Erigaisi Arjun"]
[Result "0-1"]
[ECO "B70"]
[WhiteElo "2725"]
[BlackElo "2718"]
[Annotator "TA"]
[PlyCount "74"]
[EventDate "2022.11.29"]
[EventType "tourn"]
[EventCountry "IND"]
[SourceTitle "playchess.com"]
[Source "ChessBase"]
[SourceQuality "1"]
[TimeControl "180+2"]

{[%evp 17,74,0,0,-18,-20,-9,0,0,10,-8,16,-21,-10,-33,-32,-58,-55,-66,-57,-52,-55,-93,-83,-86,-74,-100,-72,-139,-129,-187,-133,-121,-99,-231,-245,-206,-158,-267,-258,-517,-517,-527,-533,-503,-508,-821,-785,-1608,-1486,-1088,-940,-29983,-29984,-29989,-29983,-29994,-29990,-29993,-29994]} 1. e4 {[%emt 0:00:02]} c5 {[%emt 0:00:02]} 2. Nf3 {[%emt 0:00:01]} d6 {[%emt 0:00:01]} 3. d4 {[%emt 0:00:02]} cxd4 {[%emt 0:00:02]} 4. Nxd4 {[%emt 0:00:02]} Nf6 {[%emt 0:00:02]} 5. Nc3 {[%emt 0:00:01]} g6 {[%emt 0:00:01]} 6. g3 {[%emt 0:00:03]} Nc6 {[%emt 0:00:03]} 7. Nde2 {[%emt 0:00:01]} Bg7 {[%emt 0:00:02]} 8. Bg2 {[%emt 0:00:01]} Bd7 {[%emt 0:00:02]} 9. O-O {[%emt 0:00:03]} Qc8 {[%emt 0:00:02]} 10. Nf4 {[%emt 0:00:09] B70: Sicilian Dragon: 6 g3 and 6 Be2 (without a later Be3).} h5 {[%emt 0:00:07]} 11. h4 {[%emt 0:00:01]} Ng4 {[%emt 0:00:05][%cal Og6g5]} 12. Ncd5 {[%emt 0:00:06] Inhibits g5. The position is equal.} O-O {[%emt 0:00:08] [#]} 13. c3 $146 {[%emt 0:00:01]} (13. Nd3 {simplifies} e6 14. Ne3 Nf6 15. c4) ({Predecessor:} 13. Rb1 Rd8 14. c4 e6 15. Ne3 Nxe3 16. Bxe3 Ne5 17. b3 Bc6 18. Qe2 b6 19. Rfd1 {½-½ (33) Gumularz,S (2239)-Fakhrutdinov,T (2305) Porec 2015}) 13... b5 {[%emt 0:00:07]} 14. a4 {[%emt 0:00:09]} bxa4 {[%emt 0:00:08]} 15. Rxa4 {[%emt 0:00:02]} e6 {[%emt 0:00:05]} 16. Ne3 {[%emt 0:00:02]} Nce5 {[%emt 0:00:02]} 17. Ra2 {[%emt 0:00:24]} Rd8 {[%emt 0:00:13]} 18. Nxg4 {[%emt 0:00:34]} ({Much worse is} 18. Qxd6 Bb5 19. Qa3 Bf8 $17) 18... Nxg4 {[%emt 0:00:02]} 19. Qe2 {[%emt 0:00:07]} Qb7 {[%emt 0:00:12]} 20. Rd1 {[%emt 0:00:06]} Bb5 {[%emt 0:00:03]} 21. c4 {[%emt 0:00:04]} Bc6 {[%emt 0:00:02]} 22. Rd3 {[%emt 0:00:39] [#]} (22. Qc2 $142) 22... a5 $1 $17 {[%emt 0:00:06]} 23. Rda3 {[%emt 0:00:07]} (23. Rd1 $17) 23... a4 {[%emt 0:00:05]} ({Better is} 23... Bd4 $19 24. Nd3 e5) 24. Nd3 {[%emt 0:00:08]} Bd4 {[%emt 0:00:07] Black is much more active.} 25. Bf4 {[%emt 0:00:08] This costs White the game.} (25. Bd2 $17) 25... e5 $19 {[%emt 0:00:08]} 26. Bg5 {[%emt 0:00:01]} f6 {[%emt 0:00:01][%cal Bf7f6,Bf6f5,Bf5e4][%mdl 32]} 27. Bd2 {[%emt 0:00:02]} (27. Be3 $17 {was worth a try.} Bxe4 28. Bxd4 Bxg2 29. Bc3) 27... f5 {[%emt 0:00:03][%cal Rf5e4]} 28. Nb4 $2 {[%emt 0:00:17]} (28. Bf3) 28... Bxf2+ {[%emt 0:00:23]} 29. Kh1 {[%emt 0:00:00]} Bxe4 {[%emt 0:00:06][%csl Gb7][%cal Re4g2] [#]} ({Inferior is} 29... fxe4 30. Nxc6 Qxc6 31. Qxe4 $11) 30. Nd5 {[%emt 0:00:01]} Bc5 {[%emt 0:00:39]} 31. Bxe4 {[%emt 0:00:20]} (31. Rc3 $142 Rdb8 32. Be1) 31... fxe4 {[%emt 0:00:01]} 32. Rxa4 {[%emt 0:00:09]} Rxa4 {[%emt 0:00:02]} 33. Rxa4 {[%emt 0:00:01]} Qxb2 {[%emt 0:00:05]} 34. Ne7+ {[%emt 0:00:09]} Kh7 {[%emt 0:00:07] Black mates.} 35. Nxg6 {[%emt 0:00:17]} Qd4 {[%emt 0:00:12][%csl Gc5][%cal Rd4g1]} 36. Qf1 {[%emt 0:00:00]} Nf2+ {[%emt 0:00:01]} 37. Kg2 {[%emt 0:00:00]} Qxd2 {[%emt 0:00:06] Weighted Error Value: White=0.84/Black=0.07 (flawless)} 0-1

[Event "4th Tata Steel India Blitz Open 2022"]
[Site "Kolkota"]
[Date "2022.12.03"]
[Round "4.1"]
[White "Abdusattorov, Nodirbek"]
[Black "Vidit, Santosh Gujrathi"]
[Result "0-1"]
[ECO "C02"]
[WhiteElo "2713"]
[BlackElo "2724"]
[Annotator "TA"]
[PlyCount "285"]
[EventDate "2022.11.29"]
[EventType "tourn"]
[EventCountry "IND"]
[SourceTitle "playchess.com"]
[Source "ChessBase"]
[SourceQuality "1"]
[TimeControl "180+2"]

{[%evp 88,285,53,8,28,0,0,0,0,0,0,0,0,0,0,0,0,0,29974,0,0,0,0,0,0,0,0,0,0,0,0,0,0,0,0,0,0,0,0,0,0,0,0,0,0,0,0,0,0,0,0,0,0,0,0,0,0,0,0,0,0,0,0,0,0,0,0,0,0,0,0,0,0,0,0,0,0,0,0,0,0,0,0,0,0,0,0,-8,-8,-8,-8,-8,-8,-29953,-29954,-29953,-29954,-29968,-29949,-29948,-29944,-12841,-4416,-1620,-8,-511,0,0,0,-17,-19,-1841,-1950,-29964,-29965,-29967,-29968,-29968,-29965,-29962,-29965,-29965,-10369,-6406,-2609,-29969,-29968,-29989,-29969,-29972,-29968,-29969,-29968,-29964,-29966,-29965,-29966,-29977,-12544,-5085,-4134,-29980,-29981,-29981,-29982,-29982,-29983,-29983,-29984,-29984,-29983,-29983,-29978,-29978,-29976,-29976,-29977,-29983,0,-29986,-29987,-29987,-29985,-29991,-29991,-29991,-29983,-29984,-29982,-29983,-29981,-29981,-29982,-29982,-29981,-29983,-29980,-29982,-29979,-29979,-29980,-29979,-29978,-29981,-29977,-29977,-29977,-29976,-29977,-29977,-29975,-29986,-29976,-29976,-29977,-29979,-29980,-29981,-29981,-29988]} 1. e4 {[%emt 0:00:01]} e6 {[%emt 0:00:01]} 2. d4 {[%emt 0:00:02]} d5 {[%emt 0:00:01]} 3. e5 {[%emt 0:00:03]} c5 {[%emt 0:00:01]} 4. c3 {[%emt 0:00:02]} Nc6 {[%emt 0:00:02]} 5. Nf3 {[%emt 0:00:01]} Bd7 {[%emt 0:00:02]} 6. Be3 {[%emt 0:00:11]} Nge7 {[%emt 0:00:39]} 7. Bd3 {[%emt 0:00:04]} cxd4 {[%emt 0:00:09]} 8. cxd4 {[%emt 0:00:01]} Nb4 {[%emt 0:00:01]} 9. Be2 {[%emt 0:00:17]} Nf5 {[%emt 0:00:02]} 10. O-O {[%emt 0:00:02]} Be7 {[%emt 0:00:07]} 11. Nc3 {[%emt 0:00:07]} O-O {[%emt 0:00:02]} 12. a3 {[%emt 0:00:07]} Nc6 {[%emt 0:00:01]} 13. Bd3 {[%emt 0:00:00]} Nxe3 {[%emt 0:00:09]} 14. fxe3 {[%emt 0:00:01]} f6 {[%emt 0:00:01]} 15. exf6 {[%emt 0:00:08]} Rxf6 {[%emt 0:00:10]} 16. Qe2 {[%emt 0:00:14]} Qb6 {[%emt 0:00:16]} 17. Rf2 {[%emt 0:00:20]} Raf8 {[%emt 0:00:04]} 18. Raf1 {[%emt 0:00:03]} Be8 {[%emt 0:00:23]} 19. Qc2 {[%emt 0:00:15]} h6 {[%emt 0:00:08]} 20. Ne2 {[%emt 0:00:07]} Bd6 {[%emt 0:00:04]} 21. b4 {[%emt 0:00:25]} a6 {[%emt 0:00:03]} 22. h3 {[%emt 0:00:09]} Qd8 {[%emt 0:00:21]} 23. Qd2 {[%emt 0:00:09]} Bb8 {[%emt 0:00:12]} 24. Bb1 {[%emt 0:00:02]} Qe7 {[%emt 0:00:07]} 25. g3 {[%emt 0:00:25]} g5 {[%emt 0:00:11]} 26. Kg2 {[%emt 0:00:01]} Qd6 {[%emt 0:00:10]} 27. Nh2 {[%emt 0:00:07]} Rxf2+ {[%emt 0:00:05]} 28. Rxf2 {[%emt 0:00:01]} Rxf2+ 29. Kxf2 {[%emt 0:00:02]} Qf8+ {[%emt 0:00:15]} 30. Kg2 {[%emt 0:00:01]} Ne7 {[%emt 0:00:01]} 31. Ng4 {[%emt 0:00:07]} Nf5 {[%emt 0:00:04]} 32. Ne5 {[%emt 0:00:04]} Bxe5 {[%emt 0:00:06]} 33. dxe5 {[%emt 0:00:01]} Bb5 {[%emt 0:00:03]} 34. Bd3 {[%emt 0:00:09]} Bxd3 {[%emt 0:00:03]} 35. Qxd3 {[%emt 0:00:01]} Kg7 {[%emt 0:00:05]} 36. Qc3 {[%emt 0:00:06]} Qf7 {[%emt 0:00:01]} 37. Ng1 {[%emt 0:00:01]} Ne7 {[%emt 0:00:02]} 38. g4 {[%emt 0:00:04]} Nc6 {[%emt 0:00:01]} 39. Nf3 {[%emt 0:00:01]} Qg6 {[%emt 0:00:01]} 40. Kf2 {[%emt 0:00:07]} Qe4 {[%emt 0:00:01]} 41. Qc5 {[%emt 0:00:01]} Nxe5 {[%emt 0:00:06]} 42. Qc7+ {[%emt 0:00:01]} Nf7 {[%emt 0:00:01]} 43. Qxb7 {[%emt 0:00:02]} e5 {[%emt 0:00:02]} 44. Qxa6 {[%emt 0:00:02]} Qc2+ {[%emt 0:00:02]} 45. Qe2 {[%emt 0:00:02]} (45. Kf1 {with more complications.} d4 46. exd4 e4 47. Qe2) 45... Qb3 {[%emt 0:00:01]} (45... Qc3 {seems wilder.} 46. Qa2 d4 47. exd4 e4) 46. Qd2 {[%emt 0:00:05]} (46. b5 {keeps more tension.} Nd6 47. Nxe5 Nxb5 48. Qd3) 46... Qxa3 {[%emt 0:00:01]} 47. Qxd5 Qxb4 48. Nd2 {[%emt 0:00:08]} (48. Nxe5 $2 Qb2+ 49. Kf1 Qxe5 $19) 48... Qd6 {[%emt 0:00:03]} 49. Qa5 {[%emt 0:00:04]} Qd3 {[%emt 0:00:03]} 50. Nf3 {[%emt 0:00:01]} Kf6 51. Qb6+ {[%emt 0:00:06]} Ke7 {[%emt 0:00:04]} 52. Qc7+ {[%emt 0:00:00]} Ke6 $2 {[%emt 0:00:02][%mdl 8192] [#]} (52... Qd7 $11 53. Qc4 Kf6) 53. Qc8+ $2 {[%emt 0:00:02]} (53. Qxf7+ $1 {[%mdl 512]} Kxf7 (53... Kd6 54. Qf8+) 54. Nxe5+ Ke6 55. Nxd3 Kf6 56. Kf3 Kg6 57. Ke4 Kf7 58. Kd5) 53... Ke7 $11 {[%emt 0:00:01]} 54. Qc5+ {[%emt 0:00:00]} Kf6 {[%emt 0:00:03]} 55. Qb6+ {[%emt 0:00:05]} Ke7 {[%emt 0:00:03]} 56. Kg3 {[%emt 0:00:00]} Qd6 {[%emt 0:00:02]} 57. Qa7+ {[%emt 0:00:00]} Kf6 {[%emt 0:00:02]} 58. Kg2 {[%emt 0:00:01]} Qc6 {[%emt 0:00:05]} 59. Kf2 {[%emt 0:00:02]} Nd6 {[%emt 0:00:04]} 60. Qa2 {[%emt 0:00:07]} (60. Qh7 $2 Ne4+ $19) 60... Ne4+ {[%emt 0:00:00]} 61. Kg2 {[%emt 0:00:04]} Qb6 {[%emt 0:00:00]} 62. Qe2 {[%emt 0:00:00]} Qc5 {[%emt 0:00:03]} 63. Ne1 {[%emt 0:00:02]} Nd6 {[%emt 0:00:00]} 64. Qf3+ {[%emt 0:00:03]} Ke7 {[%emt 0:00:02]} 65. Kf1 {[%emt 0:00:00]} Qc4+ {[%emt 0:00:02]} 66. Kg1 {[%emt 0:00:00]} e4 {[%emt 0:00:02]} 67. Qg3 {[%emt 0:00:01]} Qe2 {[%emt 0:00:03]} 68. Qe5+ {[%emt 0:00:02]} Kd7 {[%emt 0:00:01]} 69. Ng2 {[%emt 0:00:04]} Qf3 {[%emt 0:00:04]} 70. Qg7+ {[%emt 0:00:00]} (70. Qd5 $2 Qxh3 71. Qe5 Qxg4 72. Qg7+ Ke6 73. Qxh6+ Ke7 $17) 70... Nf7 {[%emt 0:00:00]} 71. Qd4+ {[%emt 0:00:07]} Ke6 72. Kh2 {[%emt 0:00:00]} Ke7 {[%emt 0:00:04]} 73. Qd5 {[%emt 0:00:00]} Kf6 {[%emt 0:00:01]} 74. Qd4+ {[%emt 0:00:04]} Kg6 {[%emt 0:00:02]} 75. Qb6+ {[%emt 0:00:00]} Kg7 {[%emt 0:00:01]} 76. Qb2+ {[%emt 0:00:02]} Kh7 {[%emt 0:00:02]} 77. Qd2 {[%emt 0:00:03]} Qf6 {[%emt 0:00:04]} 78. Qd5 {[%emt 0:00:00]} Qf3 {[%emt 0:00:02]} 79. Kg1 {[%emt 0:00:00]} Kg7 {[%emt 0:00:01]} 80. Qe6 Qxh3 {[%emt 0:00:05]} 81. Qxe4 {[%emt 0:00:03]} Qg3 {[%emt 0:00:01]} 82. Kf1 {[%emt 0:00:04]} Ne5 {[%emt 0:00:01]} 83. Qb7+ {[%emt 0:00:01]} Kf6 {[%emt 0:00:02]} 84. Qb6+ {[%emt 0:00:01]} Ke7 {[%emt 0:00:02]} 85. Qc7+ {[%emt 0:00:01]} (85. Qxh6 Qf3+ 86. Ke1 Nf7 $15) 85... Ke6 {[%emt 0:00:01]} 86. Qb6+ $1 {[%emt 0:00:03]} Kd7 {[%emt 0:00:03]} 87. Qxh6 {[%emt 0:00:03]} Qf3+ {[%emt 0:00:01]} 88. Ke1 {[%emt 0:00:03]} Qxg2 {[%emt 0:00:02]} 89. Qg7+ {[%emt 0:00:03]} Ke6 {[%emt 0:00:02]} 90. Qg8+ $2 {[%emt 0:00:01][%mdl 8192]} (90. Qh6+ $11 Kd5 91. Qxg5) 90... Nf7 $1 {[%emt 0:00:01]} 91. Qc8+ {[%emt 0:00:03] [#]} Kf6 $1 {[%emt 0:00:01]} 92. Qc3+ {[%emt 0:00:01]} Kg6 {[%emt 0:00:02]} 93. Qd3+ {[%emt 0:00:02]} Kg7 {[%emt 0:00:01]} 94. Qd4+ {[%emt 0:00:00]} Kf8 {[%emt 0:00:05]} 95. Qc5+ {[%emt 0:00:02]} Ke8 $2 {[%emt 0:00:01]} ({Black should try} 95... Kg8 $19 96. Qc4 Qg3+ 97. Ke2 Kg7 98. Qd4+ Qe5) 96. Qc8+ $2 {[%emt 0:00:02][%mdl 8192]} (96. Qb5+ $1 $11 {and White is okay.} Kf8 97. Qc5+ Kg7 98. Qd4+ Kg8 99. Kd1) 96... Ke7 $2 {[%emt 0:00:01]} (96... Nd8 $19 {White must now prevent ...Qf3.} 97. Qc4 Qg3+ 98. Ke2 Nf7 99. Qe6+ Kf8) 97. Qc7+ $11 {[%emt 0:00:02]} Kf6 {[%emt 0:00:01]} 98. Qb6+ {[%emt 0:00:03]} Ke5 {[%emt 0:00:06]} (98... Kg7 $2 99. Qd4+ Kg8 100. Kd1 $19) 99. Qd4+ $2 {[%emt 0:00:02][%mdl 8192]} (99. Qb8+ $11 Ke6 100. Qc8+ Kf6 101. Qa6+ Ke7 102. Qa7+ Ke6 103. Qb8) 99... Ke6 $19 {[%emt 0:00:01]} 100. Qb6+ {[%emt 0:00:03]} Nd6 {[%emt 0:00:01]} 101. Qb3+ {[%emt 0:00:03]} Qd5 {[%emt 0:00:02]} 102. Qb8 {[%emt 0:00:04]} Kd7 {[%emt 0:00:04]} 103. Qa7+ {[%emt 0:00:01]} Qb7 {[%emt 0:00:03]} 104. Qa4+ {[%emt 0:00:02]} Qb5 {[%emt 0:00:01]} (104... Ke6 $142 105. Kf2 Qb2+ 106. Kf3 Qb5 107. Qa1 Qd5+ 108. Kf2 Ne4+ 109. Kg1 Qd3 110. Qa2+ Kd6 111. Qh2+ Kc6 112. Qa2 Qxe3+ 113. Kh2 Qd2+ 114. Qxd2 Nxd2 115. Kg2 Kd5 116. Kh3 Ke4 117. Kg3 Nc4 118. Kg2 Kf4 119. Kg1 Ne3 120. Kf2 Nxg4+ 121. Kf1 Ne3+ 122. Ke2 g4 123. Kd3 g3 124. Kd4 g2 125. Kc5 g1=Q 126. Kd6 Ke4 127. Ke7 Qg7+ 128. Kd6 Nd5 129. Kc5 Qc7+ 130. Kb5 Qb6+ 131. Kc4 Qb4#) 105. Qd4 {[%emt 0:00:03]} Ke6 {[%emt 0:00:03]} (105... Qb1+ $142 106. Kf2 Qe4) 106. Kf2 {[%emt 0:00:03]} Qe5 {[%emt 0:00:02]} 107. Qa4 {[%emt 0:00:01]} Qb2+ {[%emt 0:00:02]} 108. Kf3 {[%emt 0:00:02]} Qb7+ {[%emt 0:00:02]} 109. Kf2 {[%emt 0:00:03]} Ne4+ {[%emt 0:00:01]} 110. Kg1 {[%emt 0:00:04]} Qb1+ {[%emt 0:00:03]} 111. Kg2 {[%emt 0:00:01]} Qb2+ {[%emt 0:00:01]} 112. Kf3 {[%emt 0:00:01] [#]} Nd2+ {[%emt 0:00:03]} (112... Qe2+ $142 $3 {[%mdl 512]} 113. Kxe2 Nc3+ 114. Kf2 Nxa4 115. Kg2 Ke5 116. Kf2 Ke4 117. Kg2 Nb2 118. Kh1 Kxe3 119. Kg2 Nd3 120. Kg3 Ke4 121. Kg2 Kf4 122. Kh3 Kf3 123. Kh2 Kxg4 124. Kg2 Kf4 125. Kh1 Kf3 126. Kg1 g4 127. Kh1 g3 128. Kg1 g2 129. Kh2 Nf4 130. Kg1 Nh3+ 131. Kh2 g1=Q+ 132. Kxh3 Qh1#) 113. Ke2 {[%emt 0:00:03]} Nc4+ {[%emt 0:00:01]} 114. Kd3 {[%emt 0:00:02]} Ne5+ {[%emt 0:00:01]} 115. Ke4 {[%emt 0:00:01]} Qg2+ {[%emt 0:00:04]} (115... Nxg4 116. Qe8+ Kd6 117. Qd8+ Ke6 118. Qe8+ Kd6 119. Qd8+ Ke6 120. Qe8+ $11) 116. Kd4 {[%emt 0:00:01]} Qxg4+ {[%emt 0:00:02]} 117. e4 {[%emt 0:00:00]} Qg1+ {[%emt 0:00:02]} 118. Kc3 {[%emt 0:00:02]} Qc5+ {[%emt 0:00:01]} 119. Kd2 {[%emt 0:00:01]} g4 {[%emt 0:00:03]} 120. Qe8+ {[%emt 0:00:01]} Qe7 {[%emt 0:00:01]} 121. Qg8+ {[%emt 0:00:03]} Qf7 {[%emt 0:00:01]} 122. Qc8+ {[%emt 0:00:01]} Kf6 $2 {[%emt 0:00:01]} (122... Qd7+ {mates} 123. Qxd7+ Nxd7 124. Ke3 Ke5 125. Ke2 Nc5 126. Kf2 Nxe4+ 127. Kg2 Kf4 128. Kf1 g3 129. Kg2 Kg4 130. Kf1 Kf3 131. Ke1 g2 132. Kd1 g1=Q+ 133. Kc2 Qb6 134. Kc1 Ke3 135. Kc2 Nd2 136. Kd1 Qb1#) 123. Ke3 $2 {[%emt 0:00:02][%mdl 8192]} (123. Qf5+ $11 Kg7 124. Qxe5+ Kg6 125. Qd6+ Kh5 126. Qh2+ Kg6 127. Qd6+ Kh5 128. Qh2+ Kg6 129. Qd6+) 123... Qb3+ {[%emt 0:00:03]} 124. Kf2 {[%emt 0:00:01]} Qf3+ {[%emt 0:00:02]} 125. Kg1 {[%emt 0:00:00]} Qe3+ {[%emt 0:00:01]} 126. Kf1 {[%emt 0:00:01]} Qxe4 {[%emt 0:00:02]} 127. Qf8+ {[%emt 0:00:04]} Nf7 {[%emt 0:00:01]} 128. Qg8 {[%emt 0:00:05]} Qf4+ {[%emt 0:00:04]} 129. Kg2 {[%emt 0:00:01]} Qf3+ {[%emt 0:00:01]} 130. Kh2 {[%emt 0:00:02]} Qf2+ {[%emt 0:00:03]} 131. Kh1 {[%emt 0:00:00]} Qf1+ {[%emt 0:00:02]} (131... g3 132. Qxf7+ Kxf7 $11) 132. Kh2 {[%emt 0:00:01]} Qh3+ {[%emt 0:00:01]} 133. Kg1 {[%emt 0:00:01]} Qh5 {[%emt 0:00:04]} ({Weaker is} 133... g3 134. Qxf7+ Ke5 135. Qd5+ Kf4 136. Qc4+ Ke5 137. Qc5+ Kf4 138. Qc4+ (138. Qc1+ Ke5 $11) 138... Ke3 139. Qc3+ Ke4 140. Qc6+ Ke5 141. Qc5+ (141. Qg2 Qh6 $11) 141... Kf6 142. Qc6+ Qe6 143. Qxe6+ Kxe6 144. Kh1 $11) 134. Qc8 {[%emt 0:00:03]} Ne5 {[%emt 0:00:03]} 135. Qf8+ {[%emt 0:00:03]} Ke6 {[%emt 0:00:01]} 136. Qc8+ {[%emt 0:00:02]} Kd5 {[%emt 0:00:02]} 137. Qb7+ {[%emt 0:00:02]} Kd4 {[%emt 0:00:01]} 138. Qb4+ {[%emt 0:00:03]} Ke3 {[%emt 0:00:02]} 139. Qc3+ {[%emt 0:00:09]} Kf4 {[%emt 0:00:03]} 140. Qc1+ {[%emt 0:00:02]} Kf5 {[%emt 0:00:03]} 141. Qc8+ {[%emt 0:00:01]} Kg5 {[%emt 0:00:02]} 142. Qc1+ {[%emt 0:00:04]} Kg6 {[%emt 0:00:03]} 143. Qc8 {[%emt 0:00:04]} 0-1